bitfinex/quotes_ETHUSD_20251011
["timestamp","ask_amount","ask_price","bid_price","bid_amount"]
[1760203912244,0.6336,3839.8,3839.6,0.002]
[1760203912452,0.6336,3839.9,3839.6,0.002]
[1760203912883,0.9915,3839.9,3839.6,0.002]
[1760203913183,0.6336,3839.9,3839.6,0.002]
[1760203913470,0.3579,3839.8,3839.6,0.002]
[1760203913669,0.651,3839.7,3839.6,0.002]
[1760203914443,1.0089,3839.7,3839.6,0.002]
[1760203915874,1.0089,3839.7,3839.6,2.73603796]
[1760203915875,0.651,3839.7,3839.6,2.73603796]
[1760203917653,1.1198,3839.7,3839.6,0.1316]
[1760203918054,1.1198,3839.7,3839.6,0.002]
[1760203919267,0.651,3839.7,3839.6,2.60643796]
[1760203919584,0.651,3839.7,3839.6,2.73603796]
[1760203921684,1.0814,3839.7,3839.6,0.002]
[1760203922850,0.651,3839.7,3839.6,0.002]
[1760203923064,0.651,3839.7,3839.6,2.60643796]
[1760203923272,0.651,3839.7,3839.6,0.002]
[1760203924278,0.651,3839.7,3839.6,2.60643796]
[1760203925598,0.651,3839.7,3839.6,4.97643796]
[1760203931109,0.651,3839.7,3839.6,9.21543795]
[1760203931616,0.651,3839.7,3839.6,9.34503795]
[1760203932915,0.001,3839.8,3839.7,4.78477013]
[1760203933087,0.001,3839.8,3839.7,5.86837013]
[1760203933619,0.001,3839.8,3839.7,5.60797013]
[1760203934008,0.001,3839.8,3839.7,5.86837013]
[1760203934719,1e-08,3840.6,3840.5,4.52382762]
[1760203934930,1e-08,3840.6,3840.5,5.15742762]
[1760203935135,1e-08,3841.2,3841.1,2.60342089]
[1760203935425,0.001,3843.2,3841.3,2.60328534]
[1760203935426,0.651,3843.1,3841.3,2.60328534]
[1760203935632,0.651,3843.1,3841.3,4.52328534]
[1760203935828,0.651,3843.1,3841.3,4.97328534]
[1760203936345,0.651,3843.1,3841.3,5.60688534]
[1760203936903,0.651,3843.1,3841.7,3.23661429]
[1760203937096,0.651,3843.1,3841.7,21.75944803]
[1760203937407,0.651,3843.1,3841.7,22.18341789]
[1760203938610,0.651,3843.1,3841.7,4.97301429]
[1760203939020,0.4272,3843.0,3841.7,4.97301429]
[1760203939213,0.4272,3843.0,3841.7,3.05301429]
[1760203940910,3.0293445,3843.0,3841.7,3.05301429]
[1760203941341,0.4272,3843.0,3841.7,3.05301429]
[1760203941618,0.651,3843.1,3841.7,3.05301429]
[1760203943059,0.4272,3843.0,3841.7,3.05301429]
[1760203943740,2.60221592,3842.9,3841.7,3.05301429]
[1760203943948,0.4272,3842.5,3841.7,8.76201428]
[1760203944165,2.602666,3842.3,3841.5,2.60309378]
[1760203944466,0.4249,3841.7,3840.7,0.45]
[1760203944868,0.1296,3842.4,3841.7,0.1296]
[1760203945056,2.7321454,3842.4,3841.7,0.1296]
[1760203945576,0.4225,3842.2,3841.7,0.1296]
[1760203946086,0.4225,3842.2,3841.7,2.73261429]
[1760203947950,0.1296,3843.0,3841.7,3.20864443]
[1760203948840,0.651,3843.1,3841.7,5.12864443]
[1760203949168,0.651,3843.1,3841.7,5.10261429]
[1760203952483,0.001,3842.2,3841.7,5.10261429]
[1760203954161,0.001,3842.2,3841.7,4.65261429]
[1760203954806,0.001,3842.2,3841.7,5.12491429]
[1760203956903,0.001,3842.2,3841.7,9.36391428]
[1760203957736,0.001,3842.2,3841.7,9.23431428]
[1760203958028,0.001,3842.2,3841.7,5.12491429]
[1760203958414,0.001,3842.2,3841.7,2.60301429]
[1760203958912,0.001,3842.2,3841.7,4.52301429]
[1760203960202,0.001,3842.2,3841.7,4.99531429]
[1760203961030,0.001,3842.2,3841.4,0.002]
[1760203961184,0.2148,3841.9,3841.4,0.002]
[1760203961482,3.00477277,3841.7,3841.4,0.002]
[1760203961687,0.4017,3841.7,3841.4,0.002]
[1760203962012,0.4017,3841.6,3841.4,0.002]
[1760203962401,0.4017,3841.5,3841.4,0.002]
[1760203962980,3.00484981,3841.5,3841.4,0.002]
[1760203964396,3.63844981,3841.5,3841.4,0.002]
[1760203965319,3.00484981,3841.5,3841.4,0.002]
[1760203965793,0.4017,3841.5,3841.4,0.002]
[1760203966415,4.92484981,3841.5,3841.4,0.002]
[1760203966620,2.3217,3841.5,3841.4,0.002]
[1760203966922,0.4017,3841.5,3841.4,0.002]
[1760203967424,3.00484981,3841.5,3841.4,0.002]
[1760203969091,3.63844981,3841.5,3841.4,0.002]
[1760203971027,5.55844981,3841.5,3841.4,0.002]
[1760203971913,5.93539473,3841.5,3841.4,0.002]
[1760203975024,6.03983978,3841.5,3841.4,0.002]
[1760203977232,5.66289486,3841.5,3841.4,0.002]
[1760203977432,5.55844981,3841.5,3841.4,0.002]
[1760203977822,3.00484981,3841.5,3841.4,0.002]
[1760203978146,3.63844981,3841.5,3841.4,0.002]
[1760203978521,0.4017,3841.5,3841.4,0.002]
[1760203979023,2.60301906,3841.7,3841.4,0.002]
[1760203979223,1.921,3841.8,3841.4,0.002]
[1760203979551,0.4017,3841.7,3841.4,0.002]
[1760203979930,0.4017,3841.6,3841.4,0.002]
[1760203980369,0.4017,3841.5,3841.4,0.002]
[1760203980542,3.63844981,3841.5,3841.4,0.002]
[1760203980734,3.63844981,3841.5,3841.0,0.002]
[1760203980735,5.15702089,3841.1,3841.0,0.002]
[1760203981265,3.23729203,3840.7,3839.3,0.002]
[1760203981463,5.15729203,3840.7,3839.3,0.002]
[1760203981871,5.55499203,3840.7,3839.3,0.002]
[1760203983863,5.55499203,3840.7,3839.3,2.6066402]
[1760203984270,5.55499203,3840.7,3839.3,0.002]
[1760203984934,5.15729203,3840.7,3839.3,0.002]
[1760203985135,0.3977,3841.5,3840.2,0.1982]
[1760203985467,0.3987,3841.8,3840.6,0.4753]
[1760203985667,1.92,3841.6,3840.8,2.60356974]
[1760203985974,0.3987,3841.8,3841.1,2.60335565]
[1760203986157,0.3987,3841.8,3840.6,0.4753]
[1760203986357,0.3987,3841.8,3841.2,2.6033074]
[1760203986557,0.3987,3841.8,3841.3,2.60328268]
[1760203986765,0.001,3841.5,3841.3,2.60328268]
[1760203987055,0.001,3841.5,3841.1,2.60342028]
[1760203987259,0.001,3841.5,3841.2,2.60334778]
[1760203987472,0.001,3841.5,3841.4,2.60321757]
[1760203987878,0.001,3841.5,3841.4,3.07651757]
[1760203988252,0.001,3841.5,3841.4,3.64710736]
[1760203988663,0.001,3841.5,3841.4,5.59313953]
[1760203988865,0.001,3841.5,3841.4,5.56710736]
[1760203989990,0.001,3841.5,3841.4,6.20070736]
[1760203990165,1e-08,3841.9,3841.8,3.23654653]
[1760203990486,1e-08,3841.9,3841.8,6.14550118]
[1760203990686,1e-08,3841.9,3841.8,6.27510118]
[1760203991486,1e-08,3841.9,3841.8,6.14550118]
[1760203991690,1e-08,3841.9,3841.8,6.27510118]
[1760203992478,1e-08,3842.6,3842.5,5.15607234]
[1760203992689,1e-08,3842.6,3842.5,5.93193633]
[1760203992856,1e-08,3842.6,3842.5,6.40523633]
[1760203993663,1e-08,3842.6,3842.5,5.77163633]
[1760203994758,1e-08,3842.6,3842.5,2.60247234]
[1760203994959,1e-08,3842.6,3842.4,2.60252532]
[1760203995377,1e-08,3842.6,3842.5,2.60247234]
[1760203995584,1e-08,3842.6,3841.8,0.51565465]
[1760203995798,1e-08,3842.6,3841.7,0.6785]
[1760203995962,1e-08,3842.6,3842.3,2.60260251]
[1760203996162,1e-08,3842.6,3842.5,2.60247234]
[1760203996993,1e-08,3842.6,3842.0,0.4733]
[1760203997196,1e-08,3842.6,3842.5,2.60247234]
[1760203998193,1e-08,3842.6,3842.5,3.07577234]
[1760203998398,1e-08,3842.6,3842.5,2.60247234]
[1760203998579,1e-08,3842.6,3841.9,2.60286234]
[1760203998580,0.38420001,3842.6,3841.9,2.60286234]
[1760203998896,0.3842,3842.5,3841.7,2.60299364]
[1760203999084,0.3842,3842.5,3841.7,2.60297988]
[1760203999282,0.3842,3842.5,3841.2,0.4733]
[1760203999283,2.98669396,3842.5,3841.6,2.60306645]
[1760203999510,2.98669396,3842.5,3841.7,2.60299293]
[1760203999666,0.3842,3842.5,3841.9,2.60287603]
[1760203999865,2.3042,3842.5,3841.8,2.60293432]
[1760204000065,0.3842,3842.4,3841.0,0.2052]
[1760204000284,0.3842,3842.4,3841.4,2.6032051]
[1760204000595,1e-08,3842.6,3841.5,2.6031197]
[1760204000596,0.3842,3842.3,3841.5,2.6031197]
[1760204000796,0.3842,3842.3,3841.6,2.6030681]
[1760204000797,2.60265924,3842.3,3841.6,2.6030681]
[1760204001093,0.3842,3842.2,3841.4,2.6031638]
[1760204001297,2.60243984,3842.6,3840.1,0.4733]
[1760204001298,0.3842,3842.1,3840.1,0.4733]
[1760204001459,0.2189,3841.5,3840.6,2.60574833]
[1760204001659,0.6031,3841.5,3840.6,2.60574833]
[1760204001875,0.6031,3841.5,3840.7,2.60369203]
[1760204002093,0.6031,3841.5,3841.1,2.60340657]
[1760204002406,0.6031,3841.5,3840.6,0.002]
[1760204002407,0.1296,3842.3,3841.4,2.73277051]
[1760204002602,1.92,3842.2,3841.7,0.1296]
[1760204002816,0.3842,3842.1,3841.7,0.1296]
[1760204003301,0.1296,3842.3,3841.9,2.60287619]
[1760204003467,0.3842,3842.5,3842.0,0.1296]
[1760204003904,0.3842,3842.5,3842.0,2.73240297]
[1760204004083,0.12960001,3842.6,3842.0,2.73240297]
[1760204004806,1.92,3842.5,3842.0,0.1296]
[1760204005104,0.12960001,3842.6,3842.0,0.1296]
[1760204005295,1e-08,3842.6,3842.2,2.73226969]
[1760204005683,1e-08,3842.6,3842.2,0.1296]
[1760204005883,0.38420001,3842.6,3842.2,0.1296]
[1760204006109,2.30420001,3842.6,3842.2,0.1296]
[1760204006610,0.3842,3842.5,3842.2,0.1296]
[1760204007285,1e-08,3842.6,3842.2,0.1296]
[1760204007481,0.3842,3842.5,3842.2,0.1296]
[1760204007687,2.60269615,3842.2,3841.4,2.60319398]
[1760204007904,2.60269615,3842.2,3841.8,0.1296]
[1760204007905,0.3842,3842.1,3841.8,0.1296]
[1760204008215,2.60295437,3841.8,3841.4,0.1296]
[1760204008573,0.1296,3842.1,3841.4,0.1296]
[1760204008796,2.60254357,3842.4,3841.7,0.1296]
[1760204009028,2.60261531,3842.3,3841.7,0.1296]
[1760204009227,2.60263138,3842.3,3841.7,0.1296]
[1760204009432,2.82344653,3841.8,3841.7,0.1296]
[1760204009704,3.20604653,3841.8,3841.3,0.1296]
[1760204009917,0.3826,3841.7,3841.3,0.1296]
[1760204010123,0.3826,3841.6,3841.3,0.1296]
[1760204010512,2.60302067,3841.7,3841.3,0.1296]
[1760204010691,0.3826,3841.5,3841.3,0.1296]
[1760204013087,0.651,3841.4,3841.3,2.73288534]
[1760204013747,0.651,3841.4,3841.3,3.18808534]
[1760204013901,0.651,3841.4,3841.3,3.72451475]
[1760204015932,0.651,3841.4,3841.3,2.60328534]
[1760204016329,0.651,3841.4,3841.0,0.002]
[1760204016330,1.023,3841.4,3841.0,0.002]
[1760204016633,1.023,3841.4,3841.0,2.60546843]
[1760204016829,1.023,3841.4,3841.1,2.603413]
[1760204017131,0.651,3841.4,3841.0,0.002]
[1760204017563,0.651,3841.4,3841.0,2.6054698]
[1760204017847,0.651,3841.4,3841.0,2.60548731]
[1760204018052,0.651,3841.4,3841.2,2.60332448]
[1760204018348,0.651,3841.4,3841.1,2.60341119]
[1760204019422,0.651,3841.4,3841.0,0.002]
[1760204019635,0.372,3841.3,3841.0,0.002]
[1760204020243,2.60342089,3841.1,3841.0,0.002]
[1760204020653,2.97542089,3841.1,3841.0,0.002]
[1760204021947,0.372,3841.1,3841.0,0.002]
[1760204022246,2.571,3841.4,3841.0,0.002]
[1760204022451,0.372,3841.1,3841.0,0.002]
[1760204023239,0.651,3841.4,3841.0,0.002]
[1760204023571,0.651,3841.4,3841.0,2.60543566]
[1760204023918,1.023,3841.4,3841.0,2.60543566]
[1760204024321,0.651,3841.4,3841.0,0.002]
[1760204024529,0.372,3841.3,3841.0,0.002]
[1760204024932,0.651,3841.4,3841.0,0.002]
[1760204025134,0.372,3841.2,3841.0,0.002]
[1760204025561,0.372,3841.1,3841.0,0.002]
[1760204025763,0.372,3841.1,3841.0,0.1316]
[1760204026419,0.372,3841.1,3841.0,0.002]
[1760204026420,2.97542089,3841.1,3841.0,0.002]
[1760204026656,3.60902089,3841.1,3841.0,0.002]
[1760204029360,5.52902089,3841.1,3841.0,0.002]
[1760204030959,2.9256,3841.1,3841.0,0.002]
[1760204031157,1.92,3841.1,3841.0,0.002]
[1760204031459,2.292,3841.1,3841.0,0.002]
[1760204032371,5.52902089,3841.1,3841.0,0.002]
[1760204034063,2.292,3841.1,3841.0,0.002]
[1760204034377,4.89542089,3841.1,3841.0,0.002]
[1760204035778,5.52902089,3841.1,3841.0,0.002]
[1760204038967,4.89542089,3841.1,3841.0,0.002]
[1760204040117,5.52902089,3841.1,3841.0,0.002]
[1760204040421,5.90668597,3841.1,3841.0,0.002]
[1760204041816,6.01116157,3841.1,3841.0,0.002]
[1760204043496,19.88894603,3840.7,3840.6,1e-08]
[1760204043730,12.12726011,3840.7,3840.6,1e-08]
[1760204043888,5.90695711,3840.7,3840.6,1e-08]
[1760204044715,7.95575911,3840.7,3840.6,1e-08]
[1760204044913,5.90695711,3840.7,3840.6,1e-08]
[1760204045217,10.15953611,3840.7,3840.6,1e-08]
[1760204046732,5.15783448,3839.9,3838.9,0.002]
[1760204046887,2.60414277,3840.1,3838.9,0.002]
[1760204046888,5.15817363,3839.4,3839.3,1e-08]
[1760204047087,2.60484501,3839.0,3838.9,1e-08]
[1760204047295,5.15844501,3839.0,3838.9,1e-08]
[1760204047502,22.51094197,3839.0,3838.9,1e-08]
[1760204048992,22.13327689,3839.0,3838.9,1e-08]
[1760204049186,5.52894501,3839.0,3838.9,1e-08]
[1760204051035,4.89534501,3839.0,3838.9,1e-08]
[1760204051194,0.3705,3839.0,3838.9,1e-08]
[1760204051394,2.97534501,3839.0,3838.9,1e-08]
[1760204052807,0.3705,3839.0,3838.9,1e-08]
[1760204053057,2.2905,3839.0,3838.9,1e-08]
[1760204053232,4.89534501,3839.0,3838.9,1e-08]
[1760204053746,5.52894501,3839.0,3838.9,1e-08]
[1760204055945,5.52994501,3839.0,3838.9,1e-08]
[1760204056546,5.90761009,3839.0,3838.9,1e-08]
[1760204057453,5.15851286,3838.9,3838.5,0.002]
[1760204057757,5.15871644,3838.6,3838.5,1e-08]
[1760204057971,5.53638152,3838.6,3838.5,1e-08]
[1760204058261,5.53638152,3838.6,3838.1,0.002]
[1760204058262,21.76331982,3838.2,3838.1,0.002]
[1760204058472,22.7929849,3838.2,3838.1,0.002]
[1760204058762,23.1634849,3838.2,3838.1,0.002]
[1760204058926,22.78581982,3838.2,3838.1,0.002]
[1760204059827,6.18148794,3838.2,3838.1,0.002]
[1760204062252,5.54788794,3838.2,3838.1,0.002]
[1760204062454,6.18148794,3838.2,3838.1,0.002]
[1760204064373,6.55915302,3838.2,3838.1,0.002]
[1760204064549,3.23925949,3837.8,3837.7,0.002]
[1760204064755,22.14125645,3837.8,3837.7,0.002]
[1760204064957,22.51025645,3837.8,3837.7,0.002]
[1760204066547,30.47982145,3837.8,3837.7,0.002]
[1760204066780,0.6336,3837.6,3835.1,0.05]
[1760204066954,0.1244,3835.2,3835.1,0.05]
[1760204067366,3.09842594,3835.2,3835.1,0.05]
[1760204067679,3.73202594,3835.2,3835.1,0.05]
[1760204068043,1.1246,3835.2,3835.1,0.05]
[1760204070145,0.6206,3835.2,3835.1,0.05]
[1760204070348,0.1296,3835.2,3835.1,0.05]
[1760204070554,0.3864,3835.2,3835.1,0.05]
[1760204070868,0.2353,3835.5,3835.1,0.05]
[1760204070869,0.2568,3835.8,3835.1,0.05]
[1760204071075,0.3864,3835.8,3835.2,2.87311965]
[1760204071403,0.1296,3835.8,3835.2,0.26575399]
[1760204071593,0.1296,3835.8,3835.3,2.60729989]
[1760204071752,0.2568,3835.7,3835.3,2.60729989]
[1760204071947,0.2568,3835.6,3835.2,0.26575399]
[1760204072189,0.2568,3835.5,3835.3,2.91263605]
[1760204072967,0.2568,3835.5,3835.4,2.60728998]
[1760204073492,0.1296,3835.8,3835.5,2.60721356]
[1760204073694,0.2568,3835.7,3835.4,0.1296]
[1760204073981,0.2353,3835.9,3835.4,0.1296]
[1760204074174,0.2568,3835.8,3835.4,0.69976718]
[1760204074495,0.2568,3835.7,3835.4,0.1296]
[1760204075073,0.2353,3835.9,3835.5,2.6071667]
[1760204075263,0.2353,3835.9,3835.4,2.73687542]
[1760204075462,0.4921,3835.9,3835.4,2.73687542]
[1760204075985,2.1768,3836.4,3835.2,0.02607425]
[1760204076203,0.3864,3836.4,3835.8,0.1296]
[1760204076748,2.60693645,3836.0,3835.5,0.1296]
[1760204076976,2.60707024,3835.8,3835.1,0.052]
[1760204077189,2.60709468,3835.7,3835.2,0.1296]
[1760204077346,0.2568,3835.7,3835.2,0.1296]
[1760204077715,0.2568,3835.6,3835.2,0.1296]
[1760204078213,0.1296,3835.8,3835.2,0.1296]
[1760204079219,0.1296,3835.8,3835.4,2.60728006]
[1760204079585,1.003,3931.0,3835.5,2.60715512]
[1760204079586,0.2568,3836.3,3835.5,2.60715512]
[1760204079786,0.1296,3836.2,3835.5,2.73675512]
[1760204079982,0.1296,3836.2,3835.5,0.1296]
[1760204080682,0.1296,3836.2,3835.6,2.60714472]
[1760204080895,0.2568,3836.3,3835.7,0.02607086]
[1760204081098,0.2568,3836.3,3835.8,0.1296]
[1760204081317,0.2568,3836.2,3835.8,0.1296]
[1760204081613,0.1296,3836.8,3836.1,0.1296]
[1760204081814,2.60557895,3838.0,3836.4,2.60658096]
[1760204081815,0.1296,3837.0,3836.4,2.60658096]
[1760204082018,0.1296,3837.0,3836.5,2.73612859]
[1760204082182,0.429,3836.9,3836.5,0.1296]
[1760204082387,0.429,3836.8,3836.5,0.1296]
[1760204082691,2.73541339,3837.6,3836.9,0.1296]
[1760204083023,2.60608142,3837.2,3836.9,0.1296]
[1760204083325,0.6336,3837.4,3835.8,2.60695182]
[1760204083500,2.60640565,3836.8,3836.4,0.1296]
[1760204083691,0.4253,3836.7,3836.4,0.1296]
[1760204083886,0.4253,3836.6,3836.4,0.1296]
[1760204084087,16.93067855,3838.6,3836.4,0.1296]
[1760204084088,0.4253,3837.3,3836.6,2.60644918]
[1760204084297,3.16090403,3837.3,3836.7,0.1296]
[1760204084590,2.60614181,3837.1,3836.7,0.1296]
[1760204084786,2.60635541,3836.8,3836.0,2.60687391]
[1760204084983,3.03171938,3836.7,3836.4,0.1296]
[1760204085220,0.4253,3836.6,3836.4,0.1296]
[1760204085422,2.73581259,3837.0,3836.4,0.1296]
[1760204085423,2.60633019,3836.9,3836.4,0.1296]
[1760204085726,0.1296,3837.0,3836.4,0.1296]
[1760204086092,0.4253,3836.9,3836.4,0.1296]
[1760204086293,0.4253,3836.8,3836.4,0.1296]
[1760204086493,2.73585798,3837.0,3836.4,0.1296]
[1760204086494,0.4253,3836.7,3836.4,0.1296]
[1760204086695,0.1296,3837.0,3836.4,0.1296]
[1760204086896,1.92,3837.4,3836.7,2.60635055]
[1760204087198,0.1296,3837.4,3836.8,2.60631308]
[1760204087393,0.4253,3837.6,3836.9,0.0260627]
[1760204087594,0.4253,3837.6,3837.0,2.73580093]
[1760204087802,0.2204,3837.9,3837.4,0.1296]
[1760204088124,0.4253,3837.8,3837.4,0.1296]
[1760204088327,1.92,3837.8,3837.4,0.1296]
[1760204088634,0.4253,3837.7,3837.4,0.1296]
[1760204088952,0.4253,3837.6,3837.4,0.1296]
[1760204089518,0.4253,3837.5,3837.1,0.1296]
[1760204089928,2.60585103,3837.6,3837.1,0.1296]
[1760204090143,0.4253,3837.5,3837.1,0.1296]
[1760204090321,0.4253,3837.4,3837.1,0.1296]
[1760204090712,2.60585103,3837.6,3837.1,0.1296]
[1760204090917,0.4253,3837.4,3837.1,0.1296]
[1760204091225,0.001,3837.7,3837.1,0.1296]
[1760204091420,0.001,3837.7,3837.5,0.1296]
[1760204092037,0.001,3837.7,3837.6,2.63185323]
[1760204092200,0.001,3837.7,3837.6,3.09335323]
[1760204092401,0.001,3837.7,3837.6,3.19689528]
[1760204094051,0.001,3837.7,3837.6,2.73539528]
[1760204094226,0.001,3837.7,3837.6,3.26952778]
[1760204094425,0.001,3837.7,3837.6,3.73102778]
[1760204095231,0.001,3837.7,3837.6,3.26952778]
[1760204095440,0.001,3837.7,3837.6,0.1296]
[1760204095643,0.001,3837.7,3837.6,2.73539528]
[1760204095948,0.001,3837.7,3837.6,3.19689528]
[1760204096154,0.001,3837.7,3837.6,2.73539528]
[1760204097544,0.001,3837.7,3837.6,3.19689528]
[1760204097738,0.001,3837.7,3837.6,3.77978333]
[1760204098352,0.001,3837.7,3837.5,2.60584362]
[1760204098971,0.001,3837.7,3836.9,0.4615]
[1760204099126,0.001,3837.7,3836.5,0.4615]
[1760204099328,0.001,3837.7,3837.3,2.60595731]
[1760204099837,0.001,3837.7,3837.4,2.60592383]
[1760204100376,0.001,3837.7,3836.8,0.2607]
[1760204100585,0.4288,3837.7,3836.7,0.4615]
[1760204100958,0.4288,3837.7,3837.0,2.60614714]
[1760204101163,0.4288,3837.7,3837.1,2.60612497]
[1760204101484,0.4288,3837.7,3836.7,0.49881011]
[1760204101485,2.60591796,3837.5,3836.7,0.49881011]
[1760204101699,2.60591796,3837.5,3835.8,2.60701707]
[1760204101700,0.6336,3837.3,3835.1,0.5001]
[1760204101849,4.52615155,3837.1,3835.1,0.5001]
[1760204102046,4.52615155,3837.1,3835.5,2.60719367]
[1760204102276,4.52615155,3837.1,3835.1,0.5001]
[1760204102277,0.4278,3837.2,3835.6,0.70881937]
[1760204102477,2.60633972,3836.8,3835.6,2.60715202]
[1760204102683,3.03422696,3836.7,3835.8,2.6069743]
[1760204103184,0.4278,3836.7,3835.3,1.92]
[1760204103385,1.92,3837.3,3836.8,2.60632815]
[1760204103594,0.001,3837.7,3837.6,2.60579528]
[1760204103753,0.001,3837.7,3837.6,3.12696357]
[1760204103954,0.001,3837.7,3837.6,3.60112152]
[1760204104592,0.001,3837.7,3837.6,6.15472152]
[1760204104889,0.001,3837.7,3837.6,6.12866357]
[1760204105968,0.001,3837.7,3837.6,3.57506357]
[1760204108188,0.001,3837.7,3837.6,3.70666357]
[1760204108389,0.001,3837.7,3837.6,3.25856357]
[1760204109027,0.001,3837.7,3837.6,0.1316]
[1760204109195,0.001,3837.7,3837.6,0.002]
[1760204109508,0.001,3837.7,3837.6,3.05589528]
[1760204110701,0.001,3837.7,3837.6,2.60779528]
[1760204112702,0.001,3837.7,3837.6,3.05589528]
[1760204112907,0.001,3837.7,3837.6,3.484561]
[1760204113475,0.001,3837.7,3837.6,3.51061895]
[1760204113676,0.001,3837.7,3837.6,4.14421895]
[1760204113900,0.652,3838.2,3838.0,2.60552371]
[1760204114116,0.652,3838.2,3838.0,2.63157894]
[1760204114312,0.652,3838.2,3838.0,4.28182322]
[1760204116897,0.652,3838.2,3838.0,6.20182322]
[1760204117091,0.001,3838.5,3838.4,2.60525218]
[1760204117323,0.001,3838.5,3838.4,2.6313047]
[1760204117530,0.001,3838.5,3838.4,3.05335218]
[1760204117703,0.001,3838.5,3838.4,3.66662432]
[1760204118513,0.001,3838.5,3838.4,6.22022432]
[1760204118699,0.001,3838.5,3838.4,6.1941718]
[1760204119297,0.001,3838.5,3838.4,6.3237718]
[1760204120226,0.001,3838.5,3838.4,5.5605718]
[1760204120434,0.001,3838.5,3838.4,3.6405718]
[1760204121305,0.001,3838.5,3838.4,3.1924718]
[1760204122130,0.001,3838.5,3838.4,3.66662432]
[1760204122503,0.001,3838.5,3838.4,3.1924718]
[1760204122810,0.001,3838.5,3838.4,2.60525218]
[1760204123223,0.001,3838.5,3838.4,3.0794047]
[1760204123923,0.001,3838.5,3838.4,3.05335218]
[1760204124100,0.001,3838.5,3838.4,3.0794047]
[1760204124507,0.001,3838.5,3838.4,3.05335218]
[1760204124709,0.001,3838.5,3838.4,3.6405718]
[1760204124940,0.001,3838.5,3838.4,3.66662432]
[1760204125539,0.001,3838.5,3838.4,3.6405718]
[1760204126634,0.001,3838.5,3838.4,2.60525218]
[1760204127016,0.001,3838.5,3838.2,2.60533547]
[1760204127216,0.001,3838.5,3838.1,0.002]
[1760204127415,0.001,3838.5,3838.3,2.60531859]
[1760204127935,0.001,3838.5,3838.2,2.60537385]
[1760204128137,0.001,3838.5,3838.3,2.60529818]
[1760204128544,0.001,3838.5,3838.4,3.0794047]
[1760204130125,0.001,3838.5,3838.4,3.2090047]
[1760204130334,0.001,3838.5,3838.4,0.1296]
[1760204131514,0.4185,3838.5,3838.1,0.002]
[1760204131726,0.4185,3838.5,3838.2,2.60536597]
[1760204131727,0.001,3838.5,3838.2,2.60536597]
[1760204131952,0.001,3838.5,3838.4,2.73485218]
[1760204132555,0.001,3838.5,3838.4,3.2240047]
[1760204133062,0.001,3838.5,3838.4,0.1296]
[1760204134109,0.001,3838.5,3838.4,2.73485218]
[1760204134715,0.001,3838.5,3838.4,3.2240047]
[1760204135142,0.001,3838.5,3838.4,0.1296]
[1760204135619,0.001,3838.5,3838.4,2.73485218]
[1760204137326,0.001,3838.5,3838.4,3.2240047]
[1760204137973,0.001,3838.5,3838.4,2.73485218]
[1760204139274,0.001,3838.5,3838.4,2.7609047]
[1760204139785,0.001,3838.5,3838.4,2.73485218]
[1760204141380,0.001,3838.5,3838.4,0.1296]
[1760204141547,0.4185,3838.5,3838.4,0.1296]
[1760204143378,0.001,3838.5,3838.4,0.1296]
[1760204143786,0.4185,3838.5,3838.4,0.1296]
[1760204143985,0.001,3838.5,3838.4,0.1296]
[1760204145054,0.001,3838.5,3838.1,0.002]
[1760204145055,2.60538794,3838.2,3838.1,0.002]
[1760204145409,4.94288794,3838.2,3838.1,0.002]
[1760204147384,5.57648794,3838.2,3838.1,0.002]
[1760204148287,5.95415302,3838.2,3838.1,0.002]
[1760204148468,5.57648794,3838.2,3838.1,0.002]
[1760204151299,22.11004485,3838.2,3838.1,0.002]
[1760204153872,3.23925949,3837.8,3837.7,1e-08]
[1760204154072,5.53692457,3837.8,3837.7,1e-08]
[1760204154414,5.95252457,3837.8,3837.7,1e-08]
[1760204155574,5.57485949,3837.8,3837.7,1e-08]
[1760204157697,5.95252457,3837.8,3837.7,1e-08]
[1760204159107,5.57485949,3837.8,3837.7,1e-08]
[1760204161484,5.57485949,3837.8,3837.3,1e-08]
[1760204161485,3.23953109,3837.4,3837.3,1e-08]
[1760204161680,5.53719617,3837.4,3837.3,1e-08]
[1760204161880,5.95279617,3837.4,3837.3,1e-08]
[1760204162986,10.58418717,3837.4,3837.3,1e-08]
[1760204163187,5.95279617,3837.4,3837.3,1e-08]
[1760204165443,5.15980276,3837.0,3836.9,1e-08]
[1760204165587,10.05462676,3837.0,3836.9,1e-08]
[1760204165788,10.84789184,3837.0,3836.9,1e-08]
[1760204166899,10.84789184,3837.0,3836.8,0.002]
[1760204166900,2.60627068,3836.9,3836.8,0.002]
[1760204167105,2.60627068,3836.9,3835.1,0.052]
[1760204167106,3.24102594,3835.2,3835.1,0.052]
[1760204167305,5.81302594,3835.2,3835.1,0.052]
[1760204167630,6.22862594,3835.2,3835.1,0.052]
[1760204168899,6.22862594,3835.2,3835.1,1e-08]
[1760204169627,22.86731595,3835.2,3835.1,1e-08]
[1760204170332,0.6336,3835.0,3832.7,0.4304]
[1760204170534,2.5536,3834.3,3831.9,0.28733394]
[1760204170833,2.60865028,3833.4,3832.2,0.05100189]
[1760204171000,0.6336,3833.3,3832.5,2.60925807]
[1760204171201,1.048,3833.3,3832.6,0.26092581]
[1760204171432,3.65672052,3833.3,3832.6,0.26092581]
[1760204171614,1.048,3833.3,3832.6,0.26092581]
[1760204171843,1.048,3833.3,3831.2,2.89746295]
[1760204171844,0.6336,3833.1,3831.2,0.28733394]
[1760204172026,0.6336,3833.1,3830.0,0.2145]